Workbook

Sheet cost comparison (2) (hidden)
A1: COST COMPARISON
A3: Appendix D
A5: Procurement of Mill materials for Boiler 5.
C7: TENDERED PRICE | H7: REAL BASE | J7: PREVIOUSE CONTRACTS | X7: =H13 -> 0
A9: Item | B9: Description | C9: Description | D9: Remarks | E9: Unit Price | F9: 49.92% Escalation | H9: Price per Unit | J9: Description | K9: Source of information | L9: Price per Unit | M9: Escalation | N9: Revised Price per Unit | V9: % VARIANCE
X10: =3512271.96+114289.5 -> 3626561.46
X12: =3512271.96+114289.5 -> 3626561.46
A13: 1.1 | J13: Unit 1 | K13: 4600006480 | L13: =854073.12+1283774.1/5+2742711.9/5+1158136.8/5+(27253.75+23096.39)/5+23096.39 -> 1924164.098
J14: Unit 1 | K14: 4600005934 | L14: =3626561.46+182802 -> 3809363.46
C15: Valve facing | D15: Spare parts | E15: 6503 | F15: =E15*0.4992 -> 3246.2976 | J15: Total Unit 1 | L15: =SUM(L13:L14) -> 5733527.558 | M15: =L15*0 -> 0 | N15: =M15+L15 -> 5733527.558 | X15: 4072598
A17: =A13+0.1 -> 1.2 | J17: Unit 2 | K17: 4600006480 | L17: =931561+1283774.1/5+2742711.9/5+1158136.8/5+(27253.75+23096.39)/5 -> 1978555.588 | M17: =L17*0 -> 0
J18: =J17 -> Unit 2 | K18: 4600005934 | L18: =3626561.46+182802 -> 3809363.46
C19: Valve facing | D19: Spare parts | E19: 6503 | F19: =E19*0.4992 -> 3246.2976 | J19: Total Unit 2 | L19: =SUM(L17:L18) -> 5787919.048 | M19: =L19*0 -> 0 | N19: =M19+L19 -> 5787919.048 | X19: 4072598
X20: 4072598
A21: =A17+0.1 -> 1.3 | J21: Unit 3 | K21: 4600006480 | L21: =1283774.1/5+2742711.9/5+1158136.8/5+(27253.75+23096.39)/5+4072598 -> 5119592.588 | M21: =L21*0 -> 0
C22: Valve facing | D22: Spare parts | E22: 6503 | F22: =E22*0.4992 -> 3246.2976 | J22: Total Unit 3 | L22: =SUM(L21:L21) -> 5119592.588 | M22: =L22*0 -> 0 | N22: =M22+L22 -> 5119592.588 | X22: 4072598
C23: Seat retaining ring | D23: Spare parts | E23: 2986 | F23: =E23*0.4992 -> 1490.6112 | X23: 4649709
A24: =A21+0.1 -> 1.4 | J24: Unit 4 | K24: 4600006480 | L24: =1283774.1/5+2742711.9/5+1158136.8/5+(27253.75+23096.39)/5+4072598 -> 5119592.588 | M24: =L24*0 -> 0
C25: Valve facing | D25: Spare parts | E25: 6503 | F25: =E25*0.4992 -> 3246.2976 | J25: Total Unit 4 | L25: =SUM(L24:L24) -> 5119592.588 | M25: =L25*0 -> 0 | N25: =M25+L25 -> 5119592.588 | X25: 4072598
A27: =A24+0.1 -> 1.5 | C27: Valve nut | D27: Spare parts | E27: 2276 | F27: =E27*0.4992 -> 1136.1792 | J27: Unit 6 | K27: 4600006480 | L27: =1283774.1/5+2742711.9/5+1158136.8/5+(27253.75+23096.39)/5+930409+4649709 -> 6627112.588 | M27: =L27*0 -> 0
C28: Valve facing | D28: Spare parts | E28: 6503 | F28: =E28*0.4992 -> 3246.2976 | J28: Total Unit 6 | L28: =SUM(L27:L27) -> 6627112.588 | M28: =L28*0 -> 0 | N28: =M28+L28 -> 6627112.588 | X28: 4072598
A30: =A27+0.1 -> 1.6 | B30: Unit 5 | H30: =#REF! -> 
A32: Total price for Unit 5 | H32: =SUM(H11:H30) ->  | J32: Avarage price for 5 Units | L32: =(L15+L19+L22+L25+L28)/5 -> 5677548.874 | M32: =SUM(M11:M30)/5 -> 0 | N32: =SUM(N11:N30)/5 -> 5677548.874 | V32: =(H32-N32)/H32 -> 
A34: Notes

Sheet Inspections and Load Test
C2: Lifting Equipment Statutory Inspections at Eskom Majuba UCG Site
C4: Ref | D4: Description | E4: Price List
E5: Unit | F5: Quantity | G5: Rates | I5: Total Inspection
H6: Frequency
G7: Inspection
D9: MATERIAL
C11: 1 | D11: 3 Tons Lever Blocks Ilula | E11: each | F11: 2 | H11: 12 | I11: =G11*F11*H11 -> 0
C13: =C11+1 -> 2 | D13: 1.5 Tons Chain Blocks Ilula | E13: each | F13: 2 | H13: 12 | I13: =G13*F13*H13 -> 0
C15: =C13+1 -> 3 | D15: 4.4 Tons Two legged chain sling | E15: each | F15: 2 | H15: 12 | I15: 0
C17: =C15+1 -> 4 | D17: 5 Tons Two legged chain sling | E17: each | F17: 2 | H17: 12 | I17: 0
C19: =C17+1 -> 5 | D19: 3 Tons Steel Wire Rope Sling 1.5m | E19: each | F19: 2 | H19: 12 | I19: 0
C21: =C19+1 -> 6 | D21: 3.25 D Shackle | E21: each | F21: 10 | H21: 12 | I21: 0
C23: =C21+1 -> 7 | D23: 3.25 Ton D Shackles | E23: each | F23: 17 | H23: 12 | I23: 0
C25: =C23+1 -> 8 | D25: 2 Ton Crawl beam | E25: each | F25: 1 | H25: 12 | I25: 0
C27: 9 | D27: Manitou 3,5 Tons | E27: each | F27: 1 | H27: 12 | I27: 0
C29: 10 | D29: Manitou 7,5 Tons | E29: each | F29: 1 | H29: 12 | I29: 0
C31: 11 | D31: High Up 0,5 Tons | E31: each | F31: 1 | H31: 12 | I31: 0
C33: 12 | D33: Drill Rig Winch 15 Tons | E33: each | F33: 1 | H33: 12 | I33: 0
C35: 13 | D35: Drill Rig Winch 3 Tons | E35: each | F35: 1 | H35: 12 | I35: 0
E38: Unit | F38: Quantity | G38: Rates | I38: Total Load Test
G40: Load Test
C43: =C35+1 -> 14 | D43: 3 Tons Lever Blocks Ilula | E43: each | F43: 2 | H43: 3 | I43: =G43*F43*H43 -> 0
C45: =C43+1 -> 15 | D45: 1.5 Tons Chain Blocks Ilula | E45: each | F45: 2 | H45: 3 | I45: =G45*F45*H45 -> 0
C47: =C45+1 -> 16 | D47: 4.4 Tons Two legged chain sling | E47: each | F47: 2 | H47: 3 | I47: 0
C49: =C47+1 -> 17 | D49: 5 Tons Two legged chain sling | E49: each | F49: 2 | H49: 3 | I49: 0
C51: =C49+1 -> 18 | D51: 3 Tons Steel Wire Rope Sling 1.5m | E51: each | F51: 2 | H51: 3 | I51: 0
C53: =C51+1 -> 19 | D53: 3.25 D Shackle | E53: each | F53: 10 | H53: 3 | I53: 0
C55: =C53+1 -> 20 | D55: 3.25 Ton D Shackles | E55: each | F55: 17 | H55: 3 | I55: 0
C57: =C55+1 -> 21 | D57: 2 Ton Crawl beam | E57: each | F57: 1 | H57: 3 | I57: =G57*F57*H57 -> 0
C59: 22 | D59: Manitou 3,5 Tons | E59: each | F59: 1 | H59: 3 | I59: 0
C61: 23 | D61: Manitou 7,5 Tons | E61: each | F61: 1 | H61: 3 | I61: 0
C63: 24 | D63: High Up 0,5 Tons | E63: each | F63: 1 | H63: 3 | I63: 0
C65: 25 | D65: Drill Rig Winch 15 Tons | E65: each | F65: 1 | H65: 3 | I65: 0
C67: 26 | D67: Drill Rig Winch 3 Tons | E67: each | F67: 1 | H67: 3 | I67: 0
D75: Sub-Total | I75: =SUM(I11:I67) -> 0
D77: Vat 15% | I77: =I75*0.15 -> 0
D79: Total Value (R'000) | I79: =I77+I75 -> 0
C91: Prepared by:
C94: SIGNATURE & Date

Sheet Front Page1 (hidden)
A6: GROOTVLEI POWER STATION
A7: QUANTITY SURVEYING
A9: Compiled by: Mukondeleli Lekalakala | G9: 2006-07-11
A11: COST ESTIMATE
A12: PROJECT TITLE: | C12: Procurement of General Valves
A15: 1. SUMMARY
A16: In response to a request for estimates of the value of this work, prices for work of similar nature for 4600005644 in February 2006
A17: at Grootvlei Power Station were analysed, apportioned and applied as a basis for pricing this new scope and escalated accordingly.
A18: We detail hereunder our estimated costs of the work as follows:
E21: Grootvlei Estimate
B23: Estimated Cost: | E23: ='Calculation sheet'!E18 -> TOTAL FOR UNITS 2-6 | F23: Real base
B24: Upper limit: | E24: =E23*1.05 -> 
B25: Lower limit: | E25: =E23*0.95 ->  | F25: Aspiration base
A29: 2. ASSUMPTIONS
B31: The Aspiration amount is calculated with a 5% reduction relative to the Real Base value.
B32: The Real Base is determined from a previous order at Grootvlei Power Station base dated February 2006 and an estimate done
B33: by the Engineer Jan Olivier at Grootvlei Power Station.
B34: The Price list for Unit 1 is similar to that of Units 2 to 4, while the price list for unit 5 and 6 vary from unit 1.
B35: The price list for Unit 5 is similar to that of Unit 6 and the engineer's estimate was used to determine their real base.
B36: An adjustment for airfreight has been determined for unit 2 while units 3 and 4 remain the same as unit 1 (delivery by sea freight).
B37: An allowance of 5% has been included in the real base due further expected depreciation in the rand.
B38: An allowance of 2% has been included in the real base due to an 18% increase in fuel prices from January 2006 to and including July 2006.
B40: Comparison on a common base
B41: The estimated values are based on the Engineer's estimate as well as a previous contract 4600005644 contractor rates quoted - see below.
B42: The estimated final values are current rates including escalation to July 2006.
B45: VAT
B46: Prices exclude VAT

Sheet Sheet1 (hidden)
A9: GROOTVLEI POWER STATION
A10: QUANTITY SURVEYING
B11: COST REPORT FOR THE DETERMINATION OF REAL
A13: Compiled By: | C13: Mukondeleli Lekalakala
A15: PROJECT AREA : | C15: Boilers | E15: Turbines | G15: Common Plant | J15: Electrical
A17: PROJECT TITLE : Draught Group Refurbishment
A18: PROJECT ENGINEER :
A19: PROJECT MANAGER : Beric
A20: PLANNED START :
A22: 1 | B22: TERMS OF REFERENCE | H22: Critical path?
B24: The request for estimates of the value of this work, was from Goerge Moeti.
A27: 2 | B27: SCOPE
B29: The works consists of the refurbishment of the exixting forced draught
B31: Activities (select)
B32: Design
B33: Refurbish
B34: Procure
B35: Manufacture
B36: Supply
B37: Sea Freight
B38: Air Freight
B39: Road Transport
B40: Install / Erect
B41: Test & commission
A43: 3 | B43: COMMON BASE COMPARISON
A44: 3.1 | B44: Determination of real base
B45: The detailed calculation for the determination of the real base is appended
B46: to this report as Appendix
B47: Source of information
B48: Camden (if so state contract number). Is the work comparable? OEM?
B49: Contractor? Base date of that contract
B50: Other Power Station - provide information as stated above
B51: Other source - (provide as much information as possible)
B52: State methodology
B53: State assumptions
B54: Rate of exchange
B55: Escalation - local & foreign
B56: Shipping costs - sea freight, road, air
B57: Market forces (supply and demand)
B58: Economics of scale
B59: Contingencies (based on risks identified below)
B60: Other (state)
A62: 3.2 | B62: Determination of aspiration base
B63: The detailed calculation for the determination of the real base is
B64: appended to this report as Appendix
B65: State methodology
B66: State assumptions
B67: Market forces (supply and demand)
B68: Economics of scale
B69: Other (State)
A71: 3.3 | B71: Results
E73: Grootvlei Estimate Unit 1 to 6
B75: Estimated Cost: | E75: ='Calculation sheet'!F17+'Calculation sheet'!I17+'Calculation sheet'!L17+'Calculation sheet'!O17+'Calculation sheet'!R17 -> 48411602 | F75: Real base
E77: =5*'Calculation sheet'!C17 -> 41903045 | F77: Aspiration base
A79: 4 | B79: RISK REGISTER RELATIVE TO THIS EXERCISE
B80: Identified risk
B82: Long lead items
B83: Availability of material
B84: Availability of resources
B85: Interface with others
B86: Rate of exchange
B87: Escalation - local
B88: Escalation - foreign
B89: Configuration management
B90: Scope changes
B91: Others - state
A93: 5 | B93: Exclusions
B94: VAT
B95: Prices exclude VAT
B96: State other exclusions as necessary

Sheet Calculation (hidden)
A1: DETAILED ESTIMATE
A2: MILL MATERIALS
A3: The Provision of conferencing facilities, sport facilities and Meals
C8: Contract No. 4600006530. July 2006 | E8: Actual Amount Spent | G8: REAL BASE | H8: Rate | I8: TOTALS | J8: ASPIRATION BASE
C11: Invoiced amounts from July 2006 to June 2007
D12: July | E12: 9333.55
D13: August | E13: 17588.65
D14: September | E14: 18677.5
D15: October | E15: 20002.05
D16: November | E16: 20585.75
D17: December | E17: 14636.5
D18: January | E18: 23129.25
D19: February | E19: 27490.5
D20: March | E20: 29453.5
D21: April | E21: 32430.75
D22: May | E22: 25565.25
D23: June | E23: 19352.87
D24: Modificationss | E24: =9424.55+25656.25 -> 35080.8 | K24: 25656.25
C25: Average Spent (August to November 2006 - Refer to reasons below) | G25: =SUM(E13:E24)/11 -> 25817.57909 | J25: =SUM(E13:E24)/11 -> 25817.57909 | K25: =258337.12 -> 258337.12
K26: =SUM(K24:K25) -> 283993.37
C28: Projected costs January to June 2007 | G28: Amount | H28: Rate | I28: TOTALS | J28: Amount
C31: Conference facilities and refreshments | E31: (23666.115817.58 x 11) | G31: =G25*12 -> 309810.9491 | J31: =J25*12 -> 309810.9491
C35: TOTAL | G35: =SUM(G31:G33) -> 309810.9491 | I35: =#REF! ->  | J35: =SUM(J31:J33) -> 309810.9491
C37: ADD: Escalation 6.3% | G37: =G35*((0.063/12)*12) -> 19518.08979 | H37: at 20% pa | I37: =I33*0.2 -> 0 | J37: =J35*((0.063/12)*0) -> 0
C39: SUB-TOTAL | G39: =SUM(G35:G37) -> 329329.0389 | I39: =#REF! ->  | J39: =SUM(J35:J37) -> 309810.9491
C41: ADD: Risk allowance 10% | G41: =G39*0.1 -> 32932.90389 | H41: at 20% pa | I41: =I35*0.2 ->  | J41: =J39*0 -> 0
C43: ESTIMATED COST | G43: =SUM(G39:G41) -> 362261.9428 | I43: =#REF! ->  | J43: =SUM(J39:J41) -> 309810.9491
B45: Notes
B47: 1. | C47: The R19213.49 is an average of the money spent per month from 2006 August to June 2007 - reason being, July costs are for half a months only.
B48: 2. | C48: A 6.3% per annum was used for escalation using current avarage CPI and PPI.

Sheet cost comparison (hidden)
A1: COST COMPARISON
A3: Appendix C
A5: COST COMPARISON
A7: Procurement of Mill materials for Boiler 5.
A9: PREVIOUS CONTRACT 4600006480
A11: Item | B11: Description | H11: Price per Unit | I11: Escalation (Seifsa Table O) | J11: Revised Price per Unit
A16: =1+0.1 -> 1.1 | B16: Unit 3 | H16: =1283774.1/5+2742711.9/5+1158136.8/5+(27253.75+23096.39)/5+4072598 -> 5119592.588 | I16: =H16*0 -> 0
H17: 930409
B18: Total Unit 3 | C18: Valve facing | D18: Spare parts | E18: 6503 | F18: =E18*0.4992 -> 3246.2976 | H18: =SUM(H16:H17) -> 6050001.588 | I18: =H18*0 -> 0 | J18: =I18+H18 -> 6050001.588
C19: Seat retaining ring | D19: Spare parts | E19: 2986 | F19: =E19*0.4992 -> 1490.6112
A20: =A16+0.1 -> 1.2 | B20: Unit 4 | H20: =1283774.1/5+2742711.9/5+1158136.8/5+(27253.75+23096.39)/5+4072598 -> 5119592.588 | I20: =H20*0 -> 0
H21: 930409
B22: Total Unit 4 | C22: Valve facing | D22: Spare parts | E22: 6503 | F22: =E22*0.4992 -> 3246.2976 | H22: =SUM(H20:H21) -> 6050001.588 | I22: =H22*0 -> 0 | J22: =I22+H22 -> 6050001.588
A28: Total price for Unit 2 | H28: =(H18+H22+H25) -> 12100003.18 | I28: =SUM(I13:I26)/3 -> 0 | J28: =SUM(J13:J26) -> 12100003.18
A30: Average price for 2 Units | J30: =J28/2 -> 6050001.588
C34: TENDERED PRICE | H34: REAL BASE | I34: 4600006480 | J34: % VARIANCE | K34: % VARIANCE
A39: =1+0.1 -> 1.1 | B39: Price per unit | H39: =#REF! ->  | I39: =J30 -> 6050001.588 | J39: =(H39-I39)/I39 -> 
C40: Valve facing | D40: Spare parts | E40: 6503 | F40: =E40*0.4992 -> 3246.2976
A42: Notes
A43: 1 | B43: A fit for purpose cost comparison has been undertaken using the average costs associated with units 3 and 4.
A44: =A43+1 -> 2 | B44: We have included the cost of the Hydraulic Ram attachment blocks in units 3 and 4. | U44: =H39-I39 -> 
A45: =A43+1 -> 2 | B45: We have included the cost of the Hydraulic Ram attachment blocks in units 3 and 4.We have included the cost of the Hydraulic Ram attachment blocks in units 3 and 4.
A46: =A45+1 -> 3 | B46: This comparison is not a direct one but, however, serves to ensure that a realistic value is being used to determine the Real Base.
A47: =A46+1 -> 4 | B47: When the Real Base is compared to the current contract 4600006480 (Average price of units 3 & 4), there is a saving of approximately 1.90% (R114,702.04).
A48: =A47+1 -> 5 | B48: We believe that this is a favourable price for Eskom.
A49: Assessment prepared by: | D49: Assessment Accepted & Verified by: | H49: Assessment Accepted & Verified by: | J49: Assessment Approved by:
A50: Mukondeleli Lekalakala ( QS) | D50: Beric Cawood (Project Manager) | H50: Beric Cawood (Project Manager) | J50: M Israel (Head QS)
A52: _____________________________ | D52: _________________
A53: SIGNATURE & Date | D53: SIGNATURE & Date | H53: SIGNATURE & Date | J53: SIGNATURE & Date
J57: 930985
H59: =#REF!-H40 ->  | J59: =(931561+930409)/2 -> 930985

Sheet CPA Calc (hidden)
A1: REPAIR POTHOLES AND RESEAL ALL TARMAC ROADS INSIDE THE BOUNDARY OF THE GROOTVLEI POWER STATION
A3: ESCALATION ON REAL BASE
A5: Dec 07 - Feb 08
B6: Component | C6: Seifsa Table | D6: Component size | E6: Base index | F6: Final index | G6: Gross Adjustment | H6: Net adjustment
B8: Fixed | C8: N/A | D8: 0
B9: Actual labuor cost | C9: Table C3 | D9: 0.5 | E9: 10072.9 | F9: 10812.1 | G9: =D9*(F9/E9) -> 0.5366925116 | H9: =G9-D9 -> 0.03669251159
B10: Heavy Sections | C10: Table E-A | D10: 0.5 | E10: 151.1 | F10: 164.5 | G10: =D10*(F10/E10) -> 0.5443414957 | H10: =G10-D10 -> 0.0443414957
B11: Total | D11: =SUM(D8:D10) -> 1 | G11: Total | H11: =SUM(H9:H10) -> 0.08103400729
E14: Price Adjustment | F14: =H11 -> 0.08103400729
A16: RISK ALLOWANCE
A18: Feb. 08 - Dec. 08
B19: Component | C19: Seifsa Table | D19: Component size | E19: Base index | F19: Final index | G19: Gross Adjustment | H19: Net adjustment
B21: Fixed | C21: N/A | D21: 0
B22: Actual labuor cost | C22: Table C3 | D22: 0.5 | E22: 10812.1 | F22: 11430 | G22: =D22*(F22/E22) -> 0.5285744675 | H22: =G22-D22 -> 0.02857446749
B23: Heavy Sections | C23: Table E-A | D23: 0.5 | E23: 164.5 | F23: 185.1 | G23: =D23*(F23/E23) -> 0.5626139818 | H23: =G23-D23 -> 0.06261398176
B24: Total | D24: =SUM(D21:D23) -> 1 | G24: Total | H24: =SUM(H22:H23) -> 0.09118844926
E27: Price Adjustment | F27: =H24 -> 0.09118844926
A30: ESCALATION SUMMARY
B32: Period of adjustment | E32: Contract Amount before Escalation | F32: Escalation | G32: Contract Amount after Escalation
B35: ADJ. FOR December 2007 - February 2008 | E35: =#REF! ->  | F35: =E35*H11 ->  | G35: =F35+E35 -> 
B36: Risk Allowance for February 2008 - Dec. 08 ( Forecasted period) | E36: =G35 ->  | F36: =E36*H24 ->  | G36: =F36+E36 -> 
B39: Note:
B40: Escalation using SIFSA Indices which is 8.10% for year December 2007 to February 2008 and 9.12% additional for February 2008 to December 2008 has been compounded for the forecasted period..
G49: 1
F50: =F36/G35 ->  | G50: =G35/G36 -> 
G51: =G49-G50 -> 
F54: 137.5
F55: 137.5 | G55: =F55-F54 -> 0
F56: 137.5 | G56: 0
F57: 137.5 | G57: 0
F58: 137.5 | G58: 0
F59: 139 | G59: =F59-F58 -> 1.5
F60: 146 | G60: =F60-F59 -> 7
F61: 146 | G61: 0
F62: 146 | G62: 0
F63: 146 | G63: 0
F64: 146 | G64: 0
F65: 146 | G65: 0
F66: 146 | G66: 0
F67: 146 | G67: 0
F68: 146 | G68: =F68-F67 -> 0
F69: 158 | G69: =F69-F68 -> 12
E70: 6.8 | F70: =F69+E70 -> 164.8 | G70: =SUM(G55:G69) -> 20.5
F71: 1 | G71: =G70/3 -> 6.833333333

Sheet CPA Adjustments (hidden)
A1: Appendix C
A3: ='cost comparison'!#REF! -> 
A5: Option A
A6: CPA ADJUSTMENT
A8: Real Base
B11: Table O
B12: Feb
B13: Component | C13: Component size | D13: Base index | E13: Final index | F13: Gross Adustment | G13: Net adjustment
A15: 1 | B15: Fixed | C15: 0.15
A17: 2 | B17: Materis | C17: 0.85 | D17: 1266.1 | E17: 1294.7 | F17: =C17*(E17/D17) -> 0.869200695 | G17: =F17-C17 -> 0.01920069505
B19: Total | C19: =SUM(C15:C17) -> 1 | F19: Total | G19: =SUM(G15:G17) -> 0.01920069505
B21: Price Adjustment | E21: =G19 -> 0.01920069505
B26: May
A27: 1 | B27: Fixed | C27: 0.15
A29: 2 | B29: Materis | C29: 0.85 | D29: 1174.4 | E29: 1266.1 | F29: =C29*(E29/D29) -> 0.9163700613 | G29: =F29-C29 -> 0.06637006131
B31: Total | C31: =SUM(C27:C29) -> 1 | F31: Total | G31: =SUM(G27:G29) -> 0.06637006131
B34: Price Adjustment | E34: =G31 -> 0.06637006131

Sheet Cover Page (2) (hidden)
B8: COST REPORT
B9: FOR THE
B10: DETERMINATION
B11: OF THE
B12: COST COMPARISON
B20: BOILER SERV
B22: 460000600
B25: CONFIDENTIAL
B28: Revision 0
B35: Compiled by Mukondeleli Lekalakala

Sheet Sheet4 (hidden)
D5: 1277109
A7: 24840 | B7: 6 | C7: =A7*B7 -> 149040
A8: 5950 | B8: 6 | C8: 35700
A9: 18000 | B9: 6 | C9: 108000
A10: 22500 | B10: 1 | C10: 22500
A11: 5200 | B11: 1 | C11: 5200
A12: 7200 | B12: 1 | C12: 7200
C13: 156336
C14: =SUM(C7:C13) -> 483976
D15: =D5-C14 -> 793133 | E15: =#REF! -> 
D18: =(D15-E15)/E15 ->  | E18: =D15-E15 -> 
D20: =E15*D18 -> 

Sheet Sheet3 (hidden)
A1: Eskom Grootvlei Power Station – Main Warming Drains Unit 1 – 6
A2: Note: Quantities based on preliminary P&ID, to be confirmed before order placement
A3: Unit 3
A4: List of Valves
B6: Description | C6: Temporary ID | D6: QTY | E6: Size | G6: Material | I6: Connections | J6: Price Each | K6: Total Price
B7: Pressure reducing valve | C7: WPCV 001 | D7: 8 | E7: 80/100 | G7: 10CrMo910 | I7: BW/BW
B8: Isolating valves | C8: WPISV 001 | D8: 8 | E8: 80 | G8: 10CrMo910 | I8: BW/BW
B9: Isolating valves | C9: WPISV 002 | D9: 8 | E9: 40 | G9: 10CrMo910 | I9: BW/BW
B10: Isolating valves | C10: WPISV 003 | D10: 8 | E10: 40 | G10: 10CrMo910 | I10: BW/BW
B11: Isolating valves | C11: WPISV 004 | D11: 16 | E11: 25 | G11: 10CrMo910 | I11: BW/BW
B12: Isolating valves | C12: WPISV 005 | D12: 16 | E12: 25 | G12: 10CrMo910 | I12: BW/BW
B13: Isolating valves | C13: WPISV 006 | D13: 4 | E13: 80 | G13: CS | I13: BW/BW
B14: NRV | C14: WMSC 001 | D14: 8 | E14: N/A | G14: CS | I14: BW/BW
B16: Pipes, fittings and machined parts
B17: Description | C17: Temporary ID | D17: QTY | F17: Measuring unit | H17: kg | I17: Material | J17: Price Each | K17: Total Price
B18: Seamless pipe | C18: P1 | D18: 48 | F18: m | H18: 1533.4 | I18: A335 P22 or CrMo910
B19: Seamless pipe | C19: P3 | D19: 72 | F19: m | H19: 2410.78 | I19: A335 P22 or CrMo910
B20: Seamless pipe | C20: P4 | D20: 72 | F20: m | H20: 457.49 | I20: A335 P22 or CrMo910
B21: Seamless pipe | C21: P5 | D21: 48 | F21: m | H21: 521.82 | I21: A335 P22 or CrMo910
B22: Seamless pipe | C22: P6 | D22: 72 | F22: m | H22: 808.01 | I22: A335 P12 or 13CrMo44
B23: Seamless pipe | C23: P7 | D23: 72 | F23: m | H23: 1649.62 | I23: A335 P12 or 13CrMo44
B24: LR BW elbow 90 deg | C24: P8 | D24: 24 | F24: ea | H24: 446.57 | I24: A234 WP 12
B25: LR BW elbow 90 deg | C25: P9 | D25: 24 | F25: ea | H25: 700.49 | I25: A234 WP 12
B26: Conc BW reducer | C26: P10 | D26: 10 | F26: ea | H26: 173.67 | I26: A234 WP 12
B27: Conc BW reducer | C27: P11 | D27: 10 | F27: ea | H27: 272.42 | I27: A234 WP 12
B28: Machined stub | C28: P12 | D28: 8 | F28: ea | H28: - | I28: 10 CrMo 910
B29: Seamless pipe | C29: P13 | D29: 80 | F29: m | H29: 1356.16 | I29: A106B
B30: Temp pockets and stubs | C30: P14 | D30: 24 | F30: ea | H30: - | I30: TBA
B31: LR BW elbow 90 deg | C31: P15 | D31: 20 | F31: ea | H31: 584.74 | I31: A234 WPB
B33: Induction Bends
B34: Material: | D34: Item | F34: Size | H34: Angle | J34: Qty | L34: Min wall required after bending, H/T, S/B | N34: Price Each | P34: Total Price
B35: A335 P22
B36: or 10 CrMo910
B37: R=4D
D38: P2 | F38: OD 88.9 x 8.5 min wall | J38: 32 | L38: TBA
A40: Secondary steel, supports and platforms
A41: Description | C41: Item | E41: QTY | G41: Measuring unit | I41: Material | K41: Size | M41: Price Each | O41: Total Price
A42: Bought out catalogue supports | C42: Pipe Supports | E42: 4000 | G42: Kg | I42: Various | K42: Various
A43: Secondary steel | C43: Secondary Steel | E43: 6000 | G43: Kg | I43: Various | K43: Various
A44: Platforms and Walkways | C44: Platforms | E44: 9000 | G44: Kg | I44: Various
A46: Warming drains Flash Vessel
A47: Description | C47: Item | E47: QTY | G47: Measuring unit | I47: Material | K47: Size | M47: Price Each | O47: Total Price
A48: Flash Vessel | C48: FV001 | E48: 4 | G48: Ea
A52: Eskom Grootvlei Power Station – Main Warming Drains Unit 1 – 6
A53: Note: Quantities based on preliminary P&ID, to be confirmed before order placement
A54: Unit 4
A55: List of Valves
B57: Description | C57: Temporary ID | D57: QTY | E57: Size | F57: Material | G57: Connections | H57: Price Each | I57: Total Price
B58: Pressure reducing valve | C58: WPCV 001 | D58: 8 | E58: 80/100 | F58: 10CrMo910 | G58: BW/BW
B59: Isolating valves | C59: WPISV 001 | D59: 8 | E59: 80 | F59: 10CrMo910 | G59: BW/BW
B60: Isolating valves | C60: WPISV 002 | D60: 8 | E60: 40 | F60: 10CrMo910 | G60: BW/BW
B61: Isolating valves | C61: WPISV 003 | D61: 8 | E61: 40 | F61: 10CrMo910 | G61: BW/BW
B62: Isolating valves | C62: WPISV 004 | D62: 16 | E62: 25 | F62: 10CrMo910 | G62: BW/BW
B63: Isolating valves | C63: WPISV 005 | D63: 16 | E63: 25 | F63: 10CrMo910 | G63: BW/BW
B64: Isolating valves | C64: WPISV 006 | D64: 4 | E64: 80 | F64: CS | G64: BW/BW
B65: NRV | C65: WMSC 001 | D65: 8 | E65: N/A | F65: CS | G65: BW/BW
B68: Pipes, fittings and machined parts
B69: Description | D69: Temporary ID | F69: QTY | H69: Measuring unit | J69: kg | L69: Material | N69: Price Each | P69: Total Price
B70: Seamless pipe | D70: P1 | F70: 48 | H70: m | J70: 1533.4 | L70: A335 P22 or CrMo910
B71: Seamless pipe | D71: P3 | F71: 72 | H71: m | J71: 2410.78 | L71: A335 P22 or CrMo910
B72: Seamless pipe | D72: P4 | F72: 72 | H72: m | J72: 457.49 | L72: A335 P22 or CrMo910
B73: Seamless pipe | D73: P5 | F73: 48 | H73: m | J73: 521.82 | L73: A335 P22 or CrMo910
B74: Seamless pipe | D74: P6 | F74: 72 | H74: m | J74: 808.01 | L74: A335 P12 or 13CrMo44
B75: Seamless pipe | D75: P7 | F75: 72 | H75: m | J75: 1649.62 | L75: A335 P12 or 13CrMo44
B76: LR BW elbow 90 deg | D76: P8 | F76: 24 | H76: ea | J76: 446.57 | L76: A234 WP 12
B77: LR BW elbow 90 deg | D77: P9 | F77: 24 | H77: ea | J77: 700.49 | L77: A234 WP 12
B78: Conc BW reducer | D78: P10 | F78: 10 | H78: ea | J78: 173.67 | L78: A234 WP 12
B79: Conc BW reducer | D79: P11 | F79: 10 | H79: ea | J79: 272.42 | L79: A234 WP 12
B80: Machined stub | D80: P12 | F80: 8 | H80: ea | J80: - | L80: 10 CrMo 910
B81: Seamless pipe | D81: P13 | F81: 80 | H81: m | J81: 1356.16 | L81: A106B
B82: Temp pockets and stubs | D82: P14 | F82: 24 | H82: ea | J82: - | L82: TBA
B83: LR BW elbow 90 deg | D83: P15 | F83: 20 | H83: ea | J83: 584.74 | L83: A234 WPB
B84: Induction Bends
B85: Material: | D85: Item | F85: Size | H85: Angle | J85: Qty | L85: Min wall required after bending, H/T, S/B | N85: Price Each | P85: Total Price
B86: A335 P22
B87: or 10 CrMo910
B88: R=4D
D89: P2 | F89: OD 88.9 x 8.5 min wall | J89: 32 | L89: TBA
A91: Secondary steel, supports and platforms
A92: Description | C92: Item | E92: QTY | G92: Measuring unit | I92: Material | K92: Size | M92: Price Each | O92: Total Price
A93: Bought out catalogue supports | C93: Pipe Supports | E93: 4000 | G93: Kg | I93: Various | K93: Various
A94: Secondary steel | C94: Secondary Steel | E94: 6000 | G94: Kg | I94: Various | K94: Various
A95: Platforms and Walkways | C95: Platforms | E95: 9000 | G95: Kg | I95: Various
A97: Warming drains Flash Vessel
A98: Description | C98: Item | E98: QTY | G98: Measuring unit | I98: Material | K98: Size | M98: Price Each | O98: Total Price
A99: Flash Vessel | C99: FV001 | E99: 4 | G99: Ea
A102: Eskom Grootvlei Power Station – Main Warming Drains Unit 1 – 6
A103: Note: Quantities based on preliminary P&ID, to be confirmed before order placement
A104: Unit 5
A105: List of Valves
C107: Description | E107: Temporary ID | G107: QTY | H107: Size | K107: Material | O107: Connections | Q107: Price Each | S107: Total Price
C108: Pressure reducing valve | E108: WPCV 001 | G108: 8 | H108: 80/100 | K108: 10CrMo910 | O108: BW/BW
C109: Isolating valves | E109: WPISV 001 | G109: 8 | H109: 80 | K109: 10CrMo910 | O109: BW/BW
C110: Isolating valves | E110: WPISV 002 | G110: 8 | H110: 40 | K110: 10CrMo910 | O110: BW/BW
C111: Isolating valves | E111: WPISV 003 | G111: 8 | H111: 40 | K111: 10CrMo910 | O111: BW/BW
C112: Isolating valves | E112: WPISV 004 | G112: 16 | H112: 25 | K112: 10CrMo910 | O112: BW/BW
C113: Isolating valves | E113: WPISV 005 | G113: 16 | H113: 25 | K113: 10CrMo910 | O113: BW/BW
C114: Isolating valves | E114: WPISV 006 | G114: 4 | H114: 80 | K114: CS | O114: BW/BW
C115: NRV | E115: WMSC 001 | G115: 8 | H115: N/A | K115: CS | O115: BW/BW
C117: Pipes, fittings and machined parts
C118: Description | E118: Temporary ID | G118: QTY | J118: Measuring unit | M118: kg | O118: Material | Q118: Price Each | S118: Total Price
C119: Seamless pipe | E119: P1 | G119: 48 | J119: m | M119: 1533.4 | O119: A335 P22 or CrMo910
C120: Seamless pipe | E120: P3 | G120: 72 | J120: m | M120: 2410.78 | O120: A335 P22 or CrMo910
C121: Seamless pipe | E121: P4 | G121: 72 | J121: m | M121: 457.49 | O121: A335 P22 or CrMo910
C122: Seamless pipe | E122: P5 | G122: 48 | J122: m | M122: 521.82 | O122: A335 P22 or CrMo910
C123: Seamless pipe | E123: P6 | G123: 72 | J123: m | M123: 808.01 | O123: A335 P12 or 13CrMo44
C124: Seamless pipe | E124: P7 | G124: 72 | J124: m | M124: 1649.62 | O124: A335 P12 or 13CrMo44
C125: LR BW elbow 90 deg | E125: P8 | G125: 24 | J125: ea | M125: 446.57 | O125: A234 WP 12
C126: LR BW elbow 90 deg | E126: P9 | G126: 24 | J126: ea | M126: 700.49 | O126: A234 WP 12
C127: Conc BW reducer | E127: P10 | G127: 10 | J127: ea | M127: 173.67 | O127: A234 WP 12
C128: Conc BW reducer | E128: P11 | G128: 10 | J128: ea | M128: 272.42 | O128: A234 WP 12
C129: Machined stub | E129: P12 | G129: 8 | J129: ea | M129: - | O129: 10 CrMo 910
C130: Seamless pipe | E130: P13 | G130: 80 | J130: m | M130: 1356.16 | O130: A106B
C131: Temp pockets and stubs | E131: P14 | G131: 24 | J131: ea | M131: - | O131: TBA
C132: LR BW elbow 90 deg | E132: P15 | G132: 20 | J132: ea | M132: 584.74 | O132: A234 WPB
C133: Induction Bends
C134: Material: | E134: Item | G134: Size | J134: Angle | M134: Qty | O134: Min wall required after bending, H/T, S/B | Q134: Price Each | S134: Total Price
C135: A335 P22
C136: or 10 CrMo910
C137: R=4D
E138: P2 | G138: OD 88.9 x 8.5 min wall | M138: 32 | O138: TBA
B139: Secondary steel, supports and platforms
B140: Description | D140: Item | F140: QTY | I140: Measuring unit | L140: Material | N140: Size | P140: Price Each | R140: Total Price
B141: Bought out catalogue supports | D141: Pipe Supports | F141: 4000 | I141: Kg | L141: Various | N141: Various
B142: Secondary steel | D142: Secondary Steel | F142: 6000 | I142: Kg | L142: Various | N142: Various
B143: Platforms and Walkways | D143: Platforms | F143: 9000 | I143: Kg | L143: Various
B145: Warming drains Flash Vessel
B146: Description | D146: Item | F146: QTY | I146: Measuring unit | L146: Material | N146: Size | P146: Price Each | R146: Total Price
B147: Flash Vessel | D147: FV001 | F147: 4 | I147: Ea
B149: Eskom Grootvlei Power Station – Main Warming Drains Unit 1 – 6
B150: Note: Quantities based on preliminary P&ID, to be confirmed before order placement
B151: Unit 6
B152: List of Valves
D154: Description | F154: Temporary ID | H154: QTY | I154: Size | L154: Material | P154: Connections | R154: Price Each | U154: Total Price
D155: Pressure reducing valve | F155: WPCV 001 | H155: 8 | I155: 80/100 | L155: 10CrMo910 | P155: BW/BW
D156: Isolating valves | F156: WPISV 001 | H156: 8 | I156: 80 | L156: 10CrMo910 | P156: BW/BW
D157: Isolating valves | F157: WPISV 002 | H157: 8 | I157: 40 | L157: 10CrMo910 | P157: BW/BW
D158: Isolating valves | F158: WPISV 003 | H158: 8 | I158: 40 | L158: 10CrMo910 | P158: BW/BW
D159: Isolating valves | F159: WPISV 004 | H159: 16 | I159: 25 | L159: 10CrMo910 | P159: BW/BW
D160: Isolating valves | F160: WPISV 005 | H160: 16 | I160: 25 | L160: 10CrMo910 | P160: BW/BW
D161: Isolating valves | F161: WPISV 006 | H161: 4 | I161: 80 | L161: CS | P161: BW/BW
D162: NRV | F162: WMSC 001 | H162: 8 | I162: N/A | L162: CS | P162: BW/BW
D164: Pipes, fittings and machined parts
D165: Description | F165: Temporary ID | H165: QTY | K165: Measuring unit | N165: kg | P165: Material | R165: Price Each | U165: Total Price
D166: Seamless pipe | F166: P1 | H166: 48 | K166: m | N166: 1533.4 | P166: A335 P22 or CrMo910
D167: Seamless pipe | F167: P3 | H167: 72 | K167: m | N167: 2410.78 | P167: A335 P22 or CrMo910
D168: Seamless pipe | F168: P4 | H168: 72 | K168: m | N168: 457.49 | P168: A335 P22 or CrMo910
D169: Seamless pipe | F169: P5 | H169: 48 | K169: m | N169: 521.82 | P169: A335 P22 or CrMo910
D170: Seamless pipe | F170: P6 | H170: 72 | K170: m | N170: 808.01 | P170: A335 P12 or 13CrMo44
D171: Seamless pipe | F171: P7 | H171: 72 | K171: m | N171: 1649.62 | P171: A335 P12 or 13CrMo44
D172: LR BW elbow 90 deg | F172: P8 | H172: 24 | K172: ea | N172: 446.57 | P172: A234 WP 12
D173: LR BW elbow 90 deg | F173: P9 | H173: 24 | K173: ea | N173: 700.49 | P173: A234 WP 12
D174: Conc BW reducer | F174: P10 | H174: 10 | K174: ea | N174: 173.67 | P174: A234 WP 12
D175: Conc BW reducer | F175: P11 | H175: 10 | K175: ea | N175: 272.42 | P175: A234 WP 12
D176: Machined stub | F176: P12 | H176: 8 | K176: ea | N176: - | P176: 10 CrMo 910
D177: Seamless pipe | F177: P13 | H177: 80 | K177: m | N177: 1356.16 | P177: A106B
D178: Temp pockets and stubs | F178: P14 | H178: 24 | K178: ea | N178: - | P178: TBA
D179: LR BW elbow 90 deg | F179: P15 | H179: 20 | K179: ea | N179: 584.74 | P179: A234 WPB
D180: Induction Bends
D181: Material: | F181: Item | H181: Size | K181: Angle | N181: Qty | P181: Min wall required after bending, H/T, S/B | R181: Price Each | U181: Total Price
D182: A335 P22
D183: or 10 CrMo910
D184: R=4D
F185: P2 | H185: OD 88.9 x 8.5 min wall | N185: 32 | P185: TBA
C187: Secondary steel, supports and platforms
C188: Description | E188: Item | G188: QTY | J188: Measuring unit | M188: Material | O188: Size | Q188: Price Each | T188: Total Price
C189: Bought out catalogue supports | E189: Pipe Supports | G189: 4000 | J189: Kg | M189: Various | O189: Various
C190: Secondary steel | E190: Secondary Steel | G190: 6000 | J190: Kg | M190: Various | O190: Various
C191: Platforms and Walkways | E191: Platforms | G191: 9000 | J191: Kg | M191: Various
C193: Warming drains Flash Vessel
C194: Description | E194: Item | G194: QTY | J194: Measuring unit | M194: Material | O194: Size | Q194: Price Each | T194: Total Price
C195: Flash Vessel | E195: FV001 | G195: 4 | J195: Ea

Sheet Calculation sheet (hidden)
A2: 3. | B2: DETAIL ESTIMATE
B4: Apendix A
B6: Draught Group Refurbishment For Unit 2 -6
E8: R E A L B A S E
B9: UNIT 1 (Contract no 460006183) | E9: UNIT 2 | H9: UNIT 3 | K9: UNIT 4 | N9: UNIT 5 | Q9: UNIT 6
B10: Air Heaters | C10: 2837052 | E10: Air Heaters | F10: =3035805 -> 3035805 | H10: Air Heaters | I10: 1964257 | K10: Air Heaters | L10: =1968761 -> 1968761 | N10: Air Heaters | O10: 2917054 | Q10: Air Heaters | R10: 2405304
B11: ID Fans | E11: ID Fans | F11: 2932516 | H11: ID Fans | I11: 1912527 | K11: ID Fans | L11: =2526072 -> 2526072 | N11: ID Fans | O11: 0 | Q11: ID Fans | R11: 0
B12: FD Fans | C12: 502029 | E12: FD Fans | F12: =759704 -> 759704 | H12: FD Fans | I12: 648413 | K12: FD Fans | L12: =694539 -> 694539 | N12: FD Fans | O12: 1223701 | Q12: FD Fans | R12: 1223701
B13: PA Fans | C13: 3105398 | E13: PA Fans | F13: =3351192 -> 3351192 | H13: PA Fans | I13: 3260696 | K13: PA Fans | L13: =3094963 -> 3094963 | N13: PA Fans | O13: 2923148 | Q13: PA Fans | R13: 2818182
B14: Seal Air Fans | C14: 251950 | E14: Seal Air Fans | F14: =263088 -> 263088 | H14: Seal Air Fans | I14: 251955 | K14: Seal Air Fans | L14: =261288 -> 261288 | N14: Seal Air Fans | O14: 301884 | Q14: Seal Air Fans | R14: 251952
B15: Part Time Site Manager Air Heater Supervisor Fan Supervisor Part Time QC Inspector Part Time Safety Officer Time Clerk/Driver/Safety Rep/First Aider | C15: 1684180 | E15: Part Time Site Manager Air Heater Supervisor Fan Supervisor Part Time QC Inspector Part Time Safety Officer Time Clerk/Driver/Safety Rep/First Aider | F15: 1484180 | H15: Part Time Site Manager Air Heater Supervisor Fan Supervisor Part Time QC Inspector Part Time Safety Officer Time Clerk/Driver/Safety Rep/First Aider | I15: 1484180 | K15: Part Time Site Manager Air Heater Supervisor Fan Supervisor Part Time QC Inspector Part Time Safety Officer Time Clerk/Driver/Safety Rep/First Aider | L15: 1484180 | N15: Part Time Site Manager Air Heater Supervisor Fan Supervisor Part Time QC Inspector Part Time Safety Officer Time Clerk/Driver/Safety Rep/First Aider | O15: 1484180 | Q15: Part Time Site Manager Air Heater Supervisor Fan Supervisor Part Time QC Inspector Part Time Safety Officer Time Clerk/Driver/Safety Rep/First Aider | R15: 1484180
B16: TOTAL | C16: =SUM(C10:C15) -> 8380609 | E16: TOTAL | F16: =SUM(F10:F15) -> 11826485 | H16: TOTAL | I16: =SUM(I10:I15) -> 9522028 | K16: TOTAL | L16: =SUM(L10:L15) -> 10029803 | N16: TOTAL | O16: =SUM(O10:O15) -> 8849967 | Q16: TOTAL | R16: =SUM(R10:R15) -> 8183319
B17: Total Unit 1 | C17: =SUM(C16:C16) -> 8380609 | E17: Total Unit 2 | F17: =SUM(F16:F16) -> 11826485 | H17: Total Unit 3 | I17: =SUM(I16:I16) -> 9522028 | K17: Total Unit 4 | L17: =SUM(L16:L16) -> 10029803 | N17: Total Unit 5 | O17: =SUM(O16:O16) -> 8849967 | Q17: Total Unit 6 | R17: =SUM(R16:R16) -> 8183319
B18: TOTAL FOR UNITS 2-6 | C18: =C17*5 -> 41903045 | E18: TOTAL FOR UNITS 2-6 | K18: =L17+O17+R17++I17+F17 -> 48411602
B21: Notes | C21: 1
C23: 2
B25: Apendix B
B27: A S P I R A T I O N B A S E
B28: UNIT 2 | E28: UNIT 3 | H28: UNIT 4 | K28: UNIT 5 | N28: UNIT 6
B29: Air Heaters | C29: =3035805-(1100582*0.191) -> 2825593.838 | E29: Air Heaters | F29: 1964257 | H29: Air Heaters | I29: =1968761-(739662*0.24) -> 1791242.12 | K29: Air Heaters | L29: 2917054 | N29: Air Heaters | O29: 2405304
B30: ID Fans | C30: 2932516 | E30: ID Fans | F30: 1912527 | H30: ID Fans | I30: =2526072 -> 2526072 | K30: ID Fans | L30: 0 | N30: ID Fans | O30: 0
B31: FD Fans | C31: =759704-(295096*0.17) -> 709537.68 | E31: FD Fans | F31: 648413 | H31: FD Fans | I31: =694539-(183805*0.22) -> 654101.9 | K31: FD Fans | L31: 1223701 | N31: FD Fans | O31: 1223701
B32: PA Fans | C32: =3351192-(1063168*0.25) -> 3085400 | E32: PA Fans | F32: 3260696 | H32: PA Fans | I32: =3094963-(953208*0.26%) -> 3092484.659 | K32: PA Fans | L32: 2923148 | N32: PA Fans | O32: 2818182
B33: Seal Air Fans | C33: =263088-(107868*0.197) -> 241838.004 | E33: Seal Air Fans | F33: 251955 | H33: Seal Air Fans | I33: =261288-(96735*0.195) -> 242424.675 | K33: Seal Air Fans | L33: 301884 | N33: Seal Air Fans | O33: 251952
B34: Part Time Site Manager Air Heater Supervisor Fan Supervisor Part Time QC Inspector Part Time Safety Officer Time Clerk/Driver/Safety Rep/First Aider | C34: 1484180 | E34: Part Time Site Manager Air Heater Supervisor Fan Supervisor Part Time QC Inspector Part Time Safety Officer Time Clerk/Driver/Safety Rep/First Aider | F34: 1484180 | H34: Part Time Site Manager Air Heater Supervisor Fan Supervisor Part Time QC Inspector Part Time Safety Officer Time Clerk/Driver/Safety Rep/First Aider | I34: 1484180 | K34: Part Time Site Manager Air Heater Supervisor Fan Supervisor Part Time QC Inspector Part Time Safety Officer Time Clerk/Driver/Safety Rep/First Aider | L34: 1484180 | N34: Part Time Site Manager Air Heater Supervisor Fan Supervisor Part Time QC Inspector Part Time Safety Officer Time Clerk/Driver/Safety Rep/First Aider | O34: 1484180
B35: TOTAL | C35: =SUM(C29:C34) -> 11279065.52 | E35: TOTAL | F35: =SUM(F29:F34) -> 9522028 | H35: TOTAL | I35: =SUM(I29:I34) -> 9790505.354 | K35: TOTAL | L35: =SUM(L29:L34) -> 8849967 | N35: TOTAL | O35: =SUM(O29:O34) -> 8183319
B37: Total Unit 2 | C37: =SUM(C35:C36) -> 11279065.52 | E37: Total Unit 3 | F37: =SUM(F35:F36) -> 9522028 | H37: Total Unit 4 | I37: =SUM(I35:I36) -> 9790505.354 | K37: Total Unit 5 | L37: =SUM(L35:L36) -> 8849967 | N37: Total Unit 6 | O37: =SUM(O35:O36) -> 8183319
B38: TOTAL FOR UNITS 2-6 | H38: =I37+L37+O37++F37+C37 -> 47624884.88
B40: TOTAL FOR UNITS 2-6 (With 2.5% Discount because of the size of the contract) | H40: =H38-(H38*0.025) -> 46434262.75
B43: Notes | C43: 1
C45: 2
B48: COST COMPARISON
D49: Unit 2 | M49: Unit 3
B51: Real Base | E51: Aspiration Base | H51: % Difference | K51: Real Base | N51: Aspiration Base | Q51: % Difference
B53: =F17 -> 11826485 | E53: =C37 -> 11279065.52 | H53: =(B53-E53)/E53 -> 0.04853411632 | K53: =I17 -> 9522028 | N53: =F37 -> 9522028 | Q53: =(K53-N53)/N53 -> 0
B57: There is a 4.9% Difference between the real base and the Aspiration Base | K57: There is a 0% Difference between the real base and the Aspiration Base
D60: Unit 4 | M60: Unit 5
B62: Real Base | E62: Aspiration Base | H62: % Difference | K62: Real Base | N62: Aspiration Base | Q62: % Difference
B64: =L17 -> 10029803 | E64: =I37 -> 9790505.354 | H64: =(B64-E64)/E64 -> 0.02444180736 | K64: =O17 -> 8849967 | N64: =L37 -> 8849967 | Q64: =(K64-N64)/N64 -> 0
B68: There is a 2.4% Difference between the real base and the Aspiration Base | K68: There is a 0% Difference between the real base and the Aspiration Base
D70: Unit 6 | M70: Summary Cost comparison for Unit 2 - 6
B72: Real Base | E72: Aspiration Base | H72: % Difference | K72: Real Base | N72: Aspiration Base | Q72: % Difference
B74: =O37 -> 8183319 | E74: =O37 -> 8183319 | H74: =(B74-E74)/E74 -> 0 | K74: =K18 -> 48411602 | N74: =H40 -> 46434262.75 | Q74: =(K74-N74)/N74 -> 0.04258362529
B79: There is a 0% Difference between the real base and the Aspiration Base | K79: There is an overall 4.3% Difference between the real base and the Aspiration Base
B98: signed
B99: M.Lekalakala (QS)

Sheet Sheet2 (hidden)
C6: 2 | D6: 3 | E6: 4
B7: air | C7: 19 | D7: 0 | E7: 24
B8: fd | C8: 17 | D8: 0 | E8: 22
B9: id | C9: 0 | D9: 0 | E9: 0
B10: pa | C10: 25 | D10: 0 | E10: 26
B11: sa | C11: 19.7 | D11: 0 | E11: 19,5
